Workbook

Sheet Cover Page
D1: Add company logo
N2: Version 24.2a (for incinerators) - 27/11/24
N4: Note that there is another version of this template available for co-incinerators
B8: Add photo
N13: Notes:
N14: This template may require adjustments by individual operators to meet specific reporting requirements as defined in the site Permit(s)
B29: Annual Performance Report 2024
B31: Permit EPR/CP3535CK
B33: Javelin Park Energy Recovery Facility
B37: Urbaser Environmental Ltd
B39: Year: | C39: 2024
B41: Address: | C41: Javelin Park, Haresfield, Gloucestershire, GL2 7NQ
B43: Tel: | C43: 01452 379885
B45: Email: | C45: info@ubbgloucestershire.co.uk
B47: Prepared by: | C47: Jacob Towl | F47: Position: | G47: QHSE Manager
B49: Approved by: | C49: Rob Hayward | F49: Position: | G49: Operations Manager
B51: Version: | C51: 1.1
B53: Issue Date: | C53: 2025-01-31

Sheet Facility Info
A1: =+'Cover Page'!$B$29 -> Annual Performance Report 2024 | E1: =+'Cover Page'!$B$33 -> Javelin Park Energy Recovery Facility
A3: Plant Description and Design | K3: Notes:
A5: The installation is designed to recover energy from residual municipal waste, and from commercial and industrial waste of a similar nature to residual municipal waste, by incineration. Energy will be recovered from the installation in the form of electricity, which will be exported to the National Grid. The installation is located on a 4.8 hectare site at grid reference 380040,210430, a short distance south of Junction 12 of the M5 motorway in Gloucestershire. The village of Haresfield is located approximately 1.0 km to the east of the site and the Quedgeley Business Park is located approximately 1.5 km to the north of the site on either side of the motorway. The installation will process up to 190,000 tonnes of waste per year (23.75 tonnes per hour) in a single incineration line. The incinerator is of a mass burn moving grate design. Waste will be delivered to the facility by road in covered vehicles or containers and tipped within the main building in the waste reception hall directly into the waste bunker. The waste is stored and mixed in the waste bunker prior to being burnt in the moving grate incinerator plant. | K5: Include summary of plant design, design capacity, no. of combustion lines, electrical and heat capacity and any other general information that describes the facility, its location and purpose
A20: Summary of Operational Processes and Procedures
A22: Heat from the combustion process is used to generate high pressure steam in a multi stage boiler plant which is integral to the combustion process. The high pressure steam is fed to a steam turbine to generate electricity. The ERF has a total capacity of approximately 65.3 MW (thermal input) and is capable of generating up to 17.4 MWe of electrical power, of which up to 14.5 MW will be exported to the National Grid. Provision has been made in the design for the plant to be capable of supplying heat in the form of steam or hot water, once a viable heat user becomes available to take the heat as an output. The furnace design ensures that a temperature of at least 850°C for a period of at least two seconds is achieved in the combustion chamber. To ensure that the temperature does not fall below 850°C, auxiliary burners firing low sulphur fuel oil are automatically triggered by online process monitoring equipment. The auxiliary burners are also used to achieve and maintain the minimum furnace temperature during start up and shutdown periods. Combustion gases are cleaned before they are released to atmosphere. There are four components to the flue gas cleaning and abatement technique: • Selective Non-Catalytic Reduction (SNCR), involving the injection of ammonia into the combustion chamber, provides for the abatement of nitrogen oxides; • hydrated lime reagent, injected to neutralise acid gas compounds; • activated carbon, injected to absorb mercury, dioxins and furans; and • bag filtration to remove fine particulates. The residues which are collected on the bag filters are directed to a residues silo. Part of the residues are recycled to the reagent injection points to ensure maximum usage of the lime content. Cleaned flue gases exiting the abatement system of the incinerator line are discharged through a 70 m tall stack. Exhaust flue gases are continuously monitored for particulate matter, oxides of nitrogen, sulphur dioxide, carbon monoxide, total organic carbon, hydrogen chloride and ammonia Monitoring for heavy metals, dioxins, nitrous oxide and hydrogen fluoride is carried out periodically. Under normal circumstances there are no liquid effluent emissions from the installation. Although some rainwater is harvested for use in the process, the site has a net consumption of water. Waste water arisings from boiler blowdown and water treatment backwash are recycled to the Incinerator Bottom Ash (IBA) quench system. Sludge from the IBA waste water pit will be periodically tankered off-site for appropriate treatment. | K22: Include summary of key processes and procedures such as (but not limited to); waste reception, control rooms, grate, bed and boiler, energy & heat generation, cooling systems, residue management, emission controls, health and safety systems, maintenance

Sheet Contents
A1: =+'Cover Page'!$B$29 -> Annual Performance Report 2024 | E1: =+'Cover Page'!$B$33 -> Javelin Park Energy Recovery Facility
A3: Contents | K3: Notes:
A4: Section | B4: Subject | H4: Page | K4: Section references and Page nos. to be inserted
B5: Facility Information | H5: 2 | K5: Sections and Subjects may require adjustment by individual operators to meet specific reporting requirements as defined in the sites Permit(s)
B6: Operational Data | H6: 4
B7: Operational Summary | H7: 6
B8: Performance Form 1 | H8: 7
B9: Energy Form 1 | H9: 8
B10: Permit Compliance | H10: 9
B11: Improvements | H11: 10
B12: Public Liaison | H12: 11
B13: Carbon dioxide and nitrous oxide emissions | H13: 12
B14: Residue Quality | H14: 16
B15: Emissions to Water | H15: 17
B16: Emissions to Air (periodically monitored) | H16: 18
B17: Emissions to Air (continuously monitored) | H17: 19
B18: Hydrogen Chloride emissions | H18: 21
B19: Sulphur Dioxide emissions | H19: 22
B20: Oxides of Nitrogen emissions | H20: 23
B21: Total Organic Carbon emissions | H21: 24
B22: Particulate Matter emissions | H22: 25
B23: Carbon Monoxide emissions | H23: 26
B24: Ammonia emissions | H24: 28
A27: Version Control
A28: Section | B28: Information | H28: Date
A35: Distribution
A36: Copy | B36: Name, Role | H36: No.
A45: This report is required under the Industrial Emissions Directive’s Article 55(2) requirements on reporting and public information on waste incineration plants and co-incineration plants, which require the operator to produce an annual report on the functioning and monitoring of the plant and make it available to the public.

Sheet Operational Data
A1: =+'Cover Page'!$B$29 -> Annual Performance Report 2024 | E1: =+'Cover Page'!$B$33 -> Javelin Park Energy Recovery Facility
A3: Operational Data
A4: Plant Size | B4: 190000 | D4: tonnes pa | E4: 65 | F4: MWth | G4: 17 | H4: MWe | J4: Notes:
A5: No. of combustion lines | B5: 1 | D5: No. of Turbines: | F5: 1 | J5: * - RDF to include SRF
J6: ** - Combusted tonnage = tonnes delivered in period + (tonnes in bunker at start of period – tonnes in bunker at end of period), or equivalent calculation depending on plant type
A7: Waste types received | B7: Unit | C7: Q1 | D7: Q2 | E7: Q3 | F7: Q4 | G7: Year Total | H7: %
A8: Household / Local Authority | B8: tonnes | C8: 33276.86 | D8: 34352.75 | E8: 33146.26 | F8: 31147.1 | G8: =SUM(C8:F8) -> 131922.97 | H8: =IF(G8>0,G8/$G$18,"-") -> 0.7135773148
A9: Commercial & Industrial | C9: 18212.08 | D9: 19373.74 | E9: 4057.66 | F9: 11309.06 | G9: =SUM(C9:F9) -> 52952.54 | H9: 0.2864226852 | J9: *** - CHP plants only
A10: Hazardous | G10: 0 | H10: - | J10: **** Availability Definition: 'the availability of a line is to be calculated by the number of hours the line reported Continuously Monitored emission levels to the Regulator through the calendar year divided by the total number of hours in that year. The overall plant availability is calculated as the Mean of all lines in the plant. For clarity this includes periods of abnormal operation.' Rationale: The primary function of an Energy from Waste facility is the disposal of waste. It follows therefore that the availability of a plant is determined by the period of time a facility spends undertaking this activity.
A11: Clinical | G11: 0 | H11: -
A12: Waste wood (biomass) | G12: 0 | H12: -
A13: Refuse Derived Fuel * - H'hold/LA | G13: =SUM(C13:F13) -> 0 | H13: -
A14: Refuse Derived Fuel * - C&I | G14: 0 | H14: -
A15: Other [Please specify] | G15: 0 | H15: -
A16: Other [Please specify] | G16: 0 | H16: -
A17: Other [Please specify] | G17: 0 | H17: -
A18: Total waste received | C18: =SUM(C8:C17) -> 51488.94 | D18: =SUM(D8:D17) -> 53726.49 | E18: =SUM(E8:E17) -> 37203.92 | F18: =SUM(F8:F17) -> 42456.16 | G18: 184875.51
A19: Rejected Waste | G19: =SUM(C19:F19) -> 0 | H19: =IF(G19>0,G19/$G$18,"-") -> -
A20: Unprocessed waste transferred out | G20: =SUM(C20:F20) -> 0 | H20: =IF(G20>0,G20/$G$18,"-") -> -
A21: Total waste combusted ** | C21: 51276.399 | D21: 52473.46 | E21: 36882.866 | F21: 45717.18 | G21: =SUM(C21:F21) -> 186349.905
J22: Password for protected cells A password has been set to prevent accidental editing of cells with formulae. If you still need to make an edit for some reason then the password = 1234
A23: Energy Usage / Export | B23: Unit | C23: Q1 | D23: Q2 | E23: Q3 | F23: Q4 | G23: Year Total | H23: KWh/te
A24: Power Generated | B24: MWh | C24: 38575 | D24: 40232.66 | E24: 27002.56 | F24: 31454.06 | G24: =SUM(C24:F24) -> 137264.28 | H24: =IF(G24>0,G24*1000/$G$21,"-") -> 736.5943117
A25: Power Exported | C25: 34565.45 | D25: 36055.82 | E25: 23977.82 | F25: 28416.6 | G25: =SUM(C25:F25) -> 123015.69 | H25: =IF(G25>0,G25*1000/$G$21,"-") -> 660.1328292
A26: Power Used on site | C26: 4197.64 | D26: 4343.89 | E26: 3229.39 | F26: 3198.02 | G26: =SUM(C26:F26) -> 14968.94 | H26: =IF(G26>0,G26*1000/$G$21,"-") -> 80.32706
A27: Power Imported | C27: 80.5 | D27: 2.1 | E27: 424.5 | F27: 516.9 | G27: 1024 | H27: =IF(G27>0,G27*1000/$G$21,"-") -> 5.495039023
A28: Parasitic Load | B28: % | C28: =IF(C24>0,1-C25/(C24+C27),"-") -> 0.1058077117 | D28: =IF(D24>0,1-D25/(D24+D27),"-") -> 0.1038639226 | E28: =IF(E24>0,1-E25/(E24+E27),"-") -> 0.1257604716 | F28: =IF(F24>0,1-F25/(F24+F27),"-") -> 0.111174641 | G28: =IF(G24>0,1-G25/(G24+G27),"-") -> 0.110440234
A29: Thermal Energy Produced *** | B29: MWh | G29: =SUM(C29:F29) -> 0 | H29: =IF(G29>0,G29*1000/$G$21,"-") -> -
A30: Thermal Energy Exported *** | G30: 0 | H30: =IF(G30>0,G30*1000/$G$21,"-") -> -
A31: R1 value (if applicable) | B31: R1 | G31: 0.78
A33: Waste Disposal & Recovery | B33: Unit | C33: Q1 | D33: Q2 | E33: Q3 | F33: Q4 | G33: Year Total | H33: % inputs
A34: APC Residues - produced | B34: tonnes | C34: 1114.85 | D34: 1241.69 | E34: 976.75 | F34: 1073.73 | G34: =SUM(C34:F34) -> 4407.02 | H34: =IF(G34>0,G34/$G$21,"-") -> 0.02364916687
A35: IBA - produced | C35: 10469 | D35: 11860.6 | E35: 8569.05 | F35: 9819.39 | G35: 40718.04 | H35: =IF(G35>0,G35/$G$21,"-") -> 0.2185031433
A36: Metals recycling | C36: 824.9 | D36: 719.98 | E36: 480.66 | F36: 781.28 | G36: =SUM(C36:F36) -> 2806.82 | H36: 0.01506209515
A37: Other | C37: 0 | D37: 0 | E37: 0 | F37: 0 | G37: =SUM(C37:F37) -> 0 | H37: -
A38: Other | C38: 0 | D38: 0 | E38: 0 | F38: 0 | G38: 0 | H38: -
A39: Other | C39: 0 | D39: 0 | E39: 0 | F39: 0 | G39: 0 | H39: -
A41: Raw Material Usage | B41: Unit | C41: Q1 | D41: Q2 | E41: Q3 | F41: Q4 | G41: Year Total | H41: kg or Ltr /te
A42: Mains Water | B42: ltrs | C42: 8869.2 | D42: 9818.64 | E42: 10104.7 | F42: 8203.3 | G42: =SUM(C42:F42) -> 36995.84 | H42: =IF(G42>0,G42/$G$21,"-") -> 0.1985288911
A43: Other Water | B43: ltrs | G43: 0 | H43: =IF(G43>0,G43/$G$21,"-") -> -
A44: Ammonia | B44: kgs | C44: 61640 | D44: 78700 | E44: 58200 | F44: 77750 | G44: =SUM(C44:F44) -> 276290 | H44: 1.482640949
A45: Urea | B45: kgs | G45: =SUM(C45:F45) -> 0 | H45: -
A46: Activated Carbon | B46: kgs | C46: 11970 | D46: 13400 | E46: 9760 | F46: 11550 | G46: 46680 | H46: 0.2504965055
A47: Lime / hydrated lime | B47: kgs | C47: 570910 | D47: 660090 | E47: 444340 | F47: 295670 | G47: 1971010 | H47: 10.57693053
A48: Fuel oil | B48: ltrs | C48: 58504 | D48: 0 | E48: 79332.18 | F48: 49880 | G48: 187716.18 | H48: 1.007331772
A49: Gas | B49: cuf | G49: 0
A50: Other | G50: 0
A52: Summary | B52: Line/Unit | C52: Q1 | D52: Q2 | E52: Q3 | F52: Q4 | G52: Year Total | I52: Hrs in year
A53: Availability of waste combustion by line, hrs **** | B53: =+B5 -> 1 | C53: 2095 | D53: 2184 | E53: 1608.1 | F53: 1831 | G53: =SUM(C53:F53) -> 7718.1 | H53: =+G53/$I$53 -> 0.8786543716 | I53: 8784 | J53: Change this figure to 8784 in a leap year
B54: 2 | G54: 0 | H54: =+G54/$I$53 -> 0
B55: 3 | G55: 0 | H55: 0
B56: 4 | G56: 0 | H56: 0
B57: 5 | G57: =SUM(C57:F57) -> 0 | H57: 0
A58: Overall Availability, mean avg. of all lines, hrs | C58: 2095 | D58: 2184 | E58: 1608.1 | F58: 1831 | G58: 7718.1
A59: Hours of turbine operations, hrs | B59: 1 | C59: 2094.45 | D59: 2182.5 | E59: 1576.5 | F59: 1685.25 | G59: 7538.7 | H59: 0.8582308743
A60: Hours of turbine operations, hrs | B60: 2 | G60: 0 | H60: 0
A61: Hours of heat / steam export | G61: 0 | H61: =IF(B61>0,G60/I53,"n/a") -> n/a
A62: Net Calorific Value of waste | B62: MJ/kg | C62: 9.7 | D62: 9.8998 | E62: 9.919 | F62: 9.532
A63: Abnormal Events | B63: qty. | C63: 0 | D63: 0 | E63: 0 | F63: 0 | G63: 0 | H63: =IF(G63>0,"yes","no") -> no
A64: Abnormal operation | B64: hours | C64: 0 | D64: 0 | E64: 0 | F64: 0 | G64: 0 | H64: =+(G64)/I53 -> 0
A65: Permit Breaches | B65: qty. | C65: 0 | D65: 0 | E65: 0 | F65: 1 | G65: 1 | H65: =IF(G65>0,"yes","no") -> yes

Sheet Operational Summary
A1: =+'Cover Page'!$B$29 -> Annual Performance Report 2024 | E1: =+'Cover Page'!$B$33 -> Javelin Park Energy Recovery Facility
A3: Summary of Plant Operations and Maintenance during the reporting year | K3: Notes:
A5: The facility was in waste operation for 7,718 hours through 2024, incinerating 186,350 tonnes of waste against a permit limit of 190,000. There was a minor planned maintenance shutdown from 26/02/24 - 29/02/24. The major planned shutdown took place 23/09/24 - 16/10/24. During this outage maintenance that could only be done while the facility was offline took place. The facility generated 137,264 MWh during 2024, exporting 123,016 MWh. | K5: Include summary of key operational and/or maintenance activity undertaken in the year, such as any major component upgrades and/or replacements
A29: Summary of Residue Handling for the reporting year
A31: IBA is sampled 4 times per year for permit compliance purposes. Total Organic Content has a permitted limit of 3%. No measured values were above the 3% limit. Additional testing of IBA is undertaken in order to correctly classify the IBA. 24 samples (2 per month) were taken to assess for any hazardous content within the IBA. All 24 sample results were returned confirming the classification of the IBA as non-hazardous. The facility has the ability to process IBA to extract ferrous and non-ferrous metals. The remaining aggreagate, IBAA, is handled under the Environment Agency Regulatory Position Statement (RPS) 247 "Using unbound IBAA in construction activities". Once processed, all extracted metals and IBAA are then taken off site to various destinations. | K31: Include in here a summary of residue handling regimes and destinations
A54: =+'Cover Page'!C39 -> 2024 | B54: Plant shut-downs
A55: Date | B55: Reason for shut-down | K55: Provide a very brief reason for plant shut-down e.g. "Shut-down prior to major outage"; "Emergency shut-down due to boiler tube leak" There is no need to include periods of hot-standby here (e.g. to clear feed chute hopper blockages). For clinical waste incinerators which require regular shut-downs for boiler cleaning, there is no need to record these here.
A56: 26/02/24 - 29/02/24 | B56: Planned minor shutdown for maintenance
A57: 21/07/24 - 28/07/24 | B57: Emergency shutdown due to boiler tube leaks
A58: 17/08/24 - 25/08/24 | B58: Emergency shutdown due to boiler tube leaks
A59: 23/09/24 - 16/10/24 | B59: Planned major shutdown for maintenance

Sheet Perf. Form 1
A1: =+'Cover Page'!C39 -> 2024 | B1: Annual Reporting Performance Form 1
A3: =+'Cover Page'!B31 -> Permit EPR/CP3535CK | F3: Operator: | G3: =+'Cover Page'!B37 -> Urbaser Environmental Ltd
A4: Facility: | B4: =+'Cover Page'!B33:I33 -> Javelin Park Energy Recovery Facility | F4: Form: | G4: Performance 1
A6: Reporting Period from: | D6: 2024-01-01 | F6: to: | G6: 2024-12-31
A8: =+A1 -> 2024 | B8: Annual Reporting of Waste Disposal and Recovery
A9: Waste Description | C9: Disposal Route(s) | E9: Disposal Tonnes | G9: Recovery Tonnes | I9: % / tonne of waste incinerated
A10: 1) Hazardous Wastes
A11: APC Residues | C11: D01 | E11: 4385.88 | I11: =IF((E11+G11)>0,(E11+G11)/'Operational Data'!$G$21, "-") -> 0.02353572437
A12: IBA | I12: =IF((E12+G12)>0,(E12+G12)/'Operational Data'!$G$21, "-") -> -
I13: =IF((E13+G13)>0,(E13+G13)/'Operational Data'!$G$21, "-") -> -
I14: =IF((E14+G14)>0,(E14+G14)/'Operational Data'!$G$21, "-") -> -
A15: Total Hazardous Waste | E15: =SUM(E11:F14) -> 4385.88 | G15: =SUM(G11:H14) -> 0 | I15: =IF((E15+G15)>0,(E15+G15)/'Operational Data'!$G$21, "-") -> 0.02353572437
A17: 2) Non-Hazardous Wastes
A18: IBA | C18: R05 | G18: 30134.5 | I18: =IF((E18+G18)>0,(E18+G18)/'Operational Data'!$G$21, "-") -> 0.1617092319
A19: Ferrous Metal | C19: R04 | G19: 2322.1 | I19: =IF((E19+G19)>0,(E19+G19)/'Operational Data'!$G$21, "-") -> 0.01246096691
A20: Process Water | G20: 5511.34 | I20: =IF((E20+G20)>0,(E20+G20)/'Operational Data'!$G$21, "-") -> 0.02957522302
A21: Non-ferrous | C21: R04 | G21: 317.06 | I21: =IF((E21+G21)>0,(E21+G21)/'Operational Data'!$G$21, "-") -> 0.001701422923
A22: IBAA | C22: R05 | G22: 7831.4 | I22: =IF((E22+G22)>0,(E22+G22)/'Operational Data'!$G$21, "-") -> 0.04202524278
A23: Total Non-Hazardous Waste | E23: =SUM(E18:F22) -> 0 | G23: =SUM(G18:H22) -> 46116.4 | I23: =IF((E23+G23)>0,(E23+G23)/'Operational Data'!$G$21, "-") -> 0.2474720875
A24: TOTAL WASTE | E24: =+E23+E15 -> 4385.88 | G24: =+G23+G15 -> 46116.4 | I24: =IF((E24+G24)>0,(E24+G24)/'Operational Data'!$G$21, "-") -> 0.2710078119
A26: Operator’s comments :
A31: =+A1 -> 2024 | B31: Annual Reporting of Water and Other Raw Material Usage
A32: Raw Material | E32: Usage | G32: Unit | H32: Specific Usage | J32: Unit
A33: Mains Water | E33: =+'Operational Data'!G42/1000 -> 36.99584 | G33: m3 | H33: =IF(E33>0,E33/'Operational Data'!$G$21,"-") -> 0.0001985288911 | J33: m3/te
A34: Total Water | E34: =+'Operational Data'!G43+'Operational Data'!G42/1000 -> 36.99584 | G34: m3 | H34: =IF(E34>0,E34/'Operational Data'!$G$21,"-") -> 0.0001985288911 | J34: m3/te
A35: Urea / Ammonia | E35: =+'Operational Data'!G44 -> 276290 | G35: kg | H35: =IF(E35>0,E35/'Operational Data'!$G$21,"-") -> 1.482640949 | J35: kg/te
A36: Activated Carbon | E36: =+'Operational Data'!G46 -> 46680 | G36: kg | H36: =IF(E36>0,E36/'Operational Data'!$G$21,"-") -> 0.2504965055 | J36: kg/te
A37: Lime / hydrated lime / Sodium Bicarb. | E37: =+'Operational Data'!G47 -> 1971010 | G37: kg | H37: =IF(E37>0,E37/'Operational Data'!$G$21,"-") -> 10.57693053 | J37: kg/te
A39: Operator’s comments :
A43: =+A31 -> 2024 | B43: Annual Reporting of other performance indicators
A44: Parameter | C44: Results by Line
C45: A1 | D45: A2 | E45: A3 | F45: A4 | G45: A5 | I45: Turbine 1 | J45: Turbine 2
A46: Operating hours for the year, hours | C46: 7718 | I46: 7539
A47: Number of periods of abnormal operation, qty. | C47: 0
A48: Cumulative hours of abnormal operation for this year, hours | C48: 0
A50: Operator’s comments :
A54: Signed: | G54: Date:

Sheet Energy Form 1
A1: =+'Cover Page'!C39 -> 2024 | B1: Annual Reporting of Energy Usage/Export
A3: =+'Cover Page'!B31 -> Permit EPR/CP3535CK | F3: Operator: | G3: =+'Cover Page'!B37 -> Urbaser Environmental Ltd
A5: Facility: | B5: =+'Cover Page'!B33:I33 -> Javelin Park Energy Recovery Facility | F5: Form: | G5: Energy 1
A7: Reporting Period from: | D7: =+'Perf. Form 1'!D6:E6 -> 2024-01-01 | F7: to: | G7: =+'Perf. Form 1'!G6:H6 -> 2024-12-31
A9: Energy Source | D9: Energy Usage | F9: Unit | G9: Specific Usage (KWh/tonne incinerated
A10: Electricity Produced | D10: =+'Operational Data'!G24 -> 137264.28 | F10: MWh | G10: =+'Operational Data'!H24 -> 736.5943117
A11: Electricity Imported | D11: =+'Operational Data'!G27 -> 1024 | F11: MWh | G11: =+'Operational Data'!H27 -> 5.495039023
A12: Electricity Exported | D12: =+'Operational Data'!G25 -> 123015.69 | F12: MWh | G12: =+'Operational Data'!H25 -> 660.1328292
A13: Gas Oil | D13: 153.92 | F13: tonnes
A14: Steam/hot water exported | D14: =+'Operational Data'!G30 -> 0 | F14: GWh | G14: =+'Operational Data'!H30 -> -
A18: Operator’s comments :
A29: Signed: | G29: Date:

Sheet Permit Compliance
A1: =+'Cover Page'!$B$29 -> Annual Performance Report 2024 | E1: =+'Cover Page'!$B$33 -> Javelin Park Energy Recovery Facility
A3: Summary of Permit Compliance
A5: Compliance with permit limits for continuously monitored pollutants
A7: The plant met its emission limits as shown in the table below:
A8: Substance | C8: Percentage time compliant during operationNote 1 | L8: Notes:
C9: Half-hourly limit | F9: Daily limit | L9: Note 1: Please report to 2 decimal places, i.e. xx.xx% Note 2: Please enter into this table any permit non-compliances that the EA has given a CCS score for. Please also enter any other non-compliances which you have notified to the EA (e.g. ELV exceedances) but which have not yet been assessed by the EA. There is no need to enter any notifications which were subsequently assessed by the EA not to be permit breaches. Note 3: Please enter information here (rather than just referencing the notifications that were sent to the EA) including where relevant the incineration line reference, pollutant and value of the measured result for any ELV exceedances.
A10: Particulates | C10: 1 | F10: 1
A11: Oxides of nitrogen | C11: 1 | F11: 1
A12: Sulphur dioxide | C12: 1 | F12: 1
A13: Carbon monoxide | C13: 100% (95% of 10-min averages) | F13: 1
A14: Total organic carbon | C14: 1 | F14: 1
A15: Hydrogen chloride | C15: 1 | F15: 1
A16: Hydrogen fluoride | C16: 1 | F16: 1
A17: Ammonia | C17: 1 | F17: 1
A19: Summary of non-compliances under the permit Note 2
A20: Date | B20: Summary of non-compliance Note 3 | D20: Reason | G20: Measures taken to prevent reoccurrence | H20: CCS score if applicable*
H21: Impact | I21: Root cause
A22: 2024-11-23 | B22: CCS3 | D22: Characterisation of waste water from IBA pit required | G22: Characterisation testing undertaken before future removal | H22: 4
A27: *If the Environment Agency (EA) has given a Compliance Classification Scheme (CCS) score due to a permit non-compliance it should be entered here (CCS4 = No impact; CCS3 = Minor impact; CCS2 = Significant impact; CCS1 = Major impact). If the EA has not yet assessed a non-compliance which you have notified to them, these columns should be left blank. Enter N/A if no score was given for the root cause.
A29: Summary of any complaints received and actions to taken to resolve them.
A30: Date | B30: Summary of complaint [including Line/Reference] | E30: Reason (including whether substantiated by the operator or the EA) | H30: Measures taken to prevent reoccurrence
A31: 2024-04-14 | B31: Noise | E31: Substantiated Operator | H31: Originators of the noise informed and told to be considerate of neighbours
A32: 2024-05-21 | B32: Nuisance | E32: Unsubstantiated Operator
A33: 2024-07-26 | B33: Odour | E33: Substantiated Operator | H33: Facility offline. Checked all odour controls were in place and working, informed complainant of this
A34: 2024-07-27 | B34: Odour | E34: Substantiated Operator | H34: Facility offline. Checked all odour controls were in place and working, informed complainant of this
A35: 2024-08-19 | B35: Odour | E35: Substantiated Operator | H35: Facility offline. Checked all odour controls were in place and working, informed complainant of this
A36: 2024-08-19 | B36: Odour | E36: Substantiated Operator | H36: Facility offline. Checked all odour controls were in place and working, informed complainant of this
A37: 2024-08-22 | B37: Odour | E37: Substantiated Operator | H37: Facility offline. Checked all odour controls were in place and working, informed complainant of this

Sheet Improvements
A1: =+'Cover Page'!$B$29 -> Annual Performance Report 2024 | E1: =+'Cover Page'!$B$33 -> Javelin Park Energy Recovery Facility
A3: Summary of Plant Improvements
A5: Summary of any efficiency improvements that have been completed within the year.
A6: ACC clean undertaken to ensure continued efficiency of equipment
A16: Summary of any permit improvement conditions that have been completed within the year and the resulting environmental benefits.
A17: IC1 was submitted to the Environment Agency
A27: Summary of any changes to the plant or operating techniques which required a variation to the permit and a summary of the resulting environmental impact.
A28: There were no variations to the permit
A38: Summary of any other improvements made to the plant or planned to be made and a summary of the resulting environmental benefits.
A39: An OTNOC Management Plan will be implemented using the final draft template provided by the Environment Agency.

Sheet Public Liasion
A1: =+'Cover Page'!$B$29 -> Annual Performance Report 2024 | E1: =+'Cover Page'!$B$33 -> Javelin Park Energy Recovery Facility
A3: Details of Public & Stakeholder Liaison
A5: Summary of events held during the reporting year.
A6: Date | C6: Description
A7: 2024-02-16 | C7: Popp seed bomb workshop
A9: 2024-03-16 | C9: Open Day
A11: 2024-04-05 | C11: Water bottle wocket workshop
A13: 2024-10-19 | C13: Open Day
A15: 2024-11-01 | C15: Paper making workshop
A17: 2024-12-12 | C17: CLG meeting
A20: List of events planned for next year
A21: Date | C21: Description
A22: 2025-02-17 | C22: Poppy seed bomb workshop
A24: 2025-03-22 | C24: Open Day
A26: 2025-04-17 | C26: Water bottle rocket workshop
A28: 2025-08-20 | C28: Scavenger Hunt
A30: 2025-10-18 | C30: Open Day
A32: 2025-10-27 | C32: Paper making workshop
A35: If you wish to be involved in the public liaison programme, please contact info_gefw@fccenvironment.co.uk

Sheet CO2 N2O
A1: =+'Cover Page'!$B$29 -> Annual Performance Report 2024 | C1: =+'Cover Page'!$B$33 -> Javelin Park Energy Recovery Facility
A3: Carbon dioxide emissions and biogenic content of waste inputs | F3: Notes:
A5: Carbon dioxide emissions (all types of plant)
B6: Annual mass of carbon dioxide released | C6: tonnes | D6: 113174
B7: Annual mass of carbon dioxide released per tonne of waste burned | C7: t CO2 / t waste | D7: 0.61
B8: Annual mass of carbon dioxide released per MWh of energy exported | C8: t CO2 / MWh export | D8: 0.92
B9: Description of how annual carbon dioxide mass emission has been calculated. See Note 1 | C9: Use of CEMS to determine annual average CO2%, converted to mg/m3, multiplied by average stack flow multiplied by operational hours | F9: Note 1: All permits require operators to continuously monitor CO2 to EN14181 and flow to BS EN 16911-2 (unless otherwise agreed in writing). Operators must therefore use the results from these instruments to calculate their annual CO2 emissions. Where an operator does not have a flow meter calibrated to BS EN 16911-2, the averaged flow measurement from that year's periodic monitoring can be used instead. If the plant does not have calibrated CO2 CEMS, a suitably justified emissions factor can be used.
A10: Nitrous oxide emissions (only plants which use ammonia or urea to abate NOx emissions)
B11: Annual mass emissions of nitrous oxide | C11: tonnes N2O | D11: 0
B12: Description of how annual nitrous oxide mass emission has been calculated See Note 2 | C12: Annual average from CEMS, multiplie by annual average flow. CEMS readings for N2O read =<0 as an average for the year | F12: Note 2: All permits require operators to continuously monitor N2O to EN14181 and flow to BS EN 16911-2, unless otherwise agreed in writing. Operators must therefore use the results from these instruments to calculate their annual N2O emissions. Where an operator does not have a flow meter calibrated to BS EN 16911-2, the averaged flow measurement from periodic monitoring can be used instead. If the plant does not have calibrated N2O CEMS, data from periodic monitoring or a suitably justified emissions factor can be used instead.
A13: Total annual carbon dioxide + nitrous oxide emissions. See Note 3. | C13: tonnes CO2e | D13: 0 | F13: Note 3: Total annual carbon dioxide and nitrous oxide emissions reported as carbon dioxide equivalent where 1 tonne nitrous oxide is equivalent to 265 tonnes carbon dioxide.
A14: Biogenic CO2 emissions (See Note 4) | F14: Note 4: Only plants combusting residual municipal waste, refuse derived fuel or solid recovered fuel need complete this section.
B15: Percentage of total carbon dioxide emissions arising from biogenic waste | C15: % | D15: 0.47
B16: No. of measurements undertaken | C16: Number | D16: 1
B17: Description of how percentage biogenic carbon dioxide emissions have been measured or calculated. See Note 5 | C17: Waste composition analysis undertaken by Alfred H Knight provide total biogenic fraction of waste | F17: Note 5: The results from C14 sampling should be used if this is carried out at the plant (either via an installed sampler or from spot samples). Otherwise, as an approximation (and in lieu of any more accurate metrics which may be developed in future), the measured or estimated biogenic fraction by net calorific value (see Note 6) can be assumed to be the same as the biogenic CO2 fraction of the total CO2 emissions from the plant.
A18: Biogenic fraction of waste feedstock (See Note 4)
B19: Yearly average biogenic percentage of the waste by net calorific value (NCV) | C19: %
B20: Description of how biogenic percentage (by NCV) has been calculated or estimated. See Note 6 | F20: Note 6: If C14 sampling is carried out at the plant, the methodology set out in the embedded document entitled "Renewable Energy Association Energy Content of Fuels - Description of Method" embedded below can be used to calculate the biogenic percentage by net calorific value. Otherwise, data from waste sampling or BIOMA software can be used; or if none of these are available, an estimated figure with justification or a figure assumed on the basis of up-to-date industry data can be used.
B21: Yearly average biogenic percentage of the waste by mass | C21: % | D21: 0.47
B22: If waste sampling undertaken, no. of samples used to ascertain average biogenic percentages above | C22: Number | D22: 1
B23: Description of how biogenic percentage (by mass) has been calculated or estimated. See Note 7 | C23: Waste composition analysis undertaken by Alfred H Knight provide total biogenic fraction of waste | F23: Note 7: Where available, data from waste sampling should be used; otherwise, an estimated figure with justification can be used, or a figure assumed on the basis of up-to-date industry data.
B25: Comments:

Sheet Residue Quality
A1: =+'Cover Page'!$B$29 -> Annual Performance Report 2024 | E1: =+'Cover Page'!$B$33 -> Javelin Park Energy Recovery Facility
A3: Residue Quality Monitoring Requirements
A5: Summary of monitoring undertaken and compliance
A6: Monitoring of residues as required in environmental permit was undertaken with no non-compliances recorded.
A8: 24 samples taken and analysed as per the ESA protocol classified as non-hazardous.
A13: Commentary on any specific events
A14: Date & Event | C14: Description
A27: Residue Quality Monitoring Results
A28: Parameter (unit) | C28: Limit* | D28: Normal Operation
D29: Bottom ash | F29: APC Residues
A30: Loss on Ignition (average %) | C30: <5% | D30: 1.48
A31: Total Organic Carbon (average %) | C31: <3% | D31: 0.5
A32: No. of Assessments Undertaken | C32: --- | D32: 24 | F32: 4
A33: No. of Hazardous Results | C33: --- | D33: 0
A34: * The permit will specify a limit of either 5% loss on ignition or 3% total organic carbon. If both are measured anyway, please enter the results here, even where the limit does not apply.
A36: Comments :

Sheet Water
A1: =+'Cover Page'!$B$29 -> Annual Performance Report 2024 | E1: =+'Cover Page'!$B$33 -> Javelin Park Energy Recovery Facility
A3: Emissions to Water
A5: Summary of monitoring undertaken and compliance
A13: Commentary on any specific events
A14: Date & Event | C14: Description
A22: Emissions to Water / Sewer
A23: Parameter | D23: Monitoring Frequency | F23: Limit | G23: Target | H23: Max. | I23: Average

Sheet Air (periodic)
A1: =+'Cover Page'!$B$29 -> Annual Performance Report 2024 | E1: =+'Cover Page'!$B$33 -> Javelin Park Energy Recovery Facility
A3: Emissions to Air (periodically monitored)
A5: Summary of monitoring undertaken, standards used and compliance | K5: Notes:
A6: Twice yearly monitoring carried out by competent contractors to the standards set out in the environmental permit | K6: Template may require adjustment for any bespoke monitoring requirements of permit - please also check that all default ELV values, reference periods and the stated oxygen reference value match those for your plant, and edit if necessary!
A9: Results of emissions to air that are periodically monitored - oxygen reference 11%
A10: Substance | C10: Ref. Period | D10: Emission Limit Value | F10: Average | K10: User to add additional tables as necessary, depending on whether quarterly or bi-annual reporting is required for the compliance year
F11: A1 | G11: A2 | H11: A3 | I11: A4 | J11: A5
A12: Hydrogen fluoride | C12: 1 hr | D12: 1 mg/m3 | F12: 0.13
A13: Cd and Tl and their compounds | C13: 0.5-8hrs | D13: 0.02 mg/m3 | F13: 0.0008
A14: Hg and its compounds | C14: 0.5-8hrs | D14: 0.02 mg/m3 | F14: 0.0004
A15: Sb, As, Pb, Cr, Co, Cu, Mn, Ni, V and their compounds | C15: 0.5-8hrs | D15: 0.3 mg/m3 | F15: 0.035
A16: Dioxins & Furans (I-TEQ) | C16: 6-8hrs | D16: 0.06 ng/m3 | F16: 0.014
A17: PCBs (WHO-TEQ Humans / Mammals) | C17: 6-8hrs | D17: None set ng/m3 | F17: 0.0032
A18: PCBs (WHO-TEQ Fish) | C18: 6-8hrs | D18: None set ng/m3 | F18: 0.0002
A19: PCBs (WHO-TEQ Birds) | C19: 6-8hrs | D19: None set ng/m3 | F19: 0.006
A20: Dioxins & Furans (WHO-TEQ Humans / Mammals) | C20: 6-8hrs | D20: None set ng/m3 | F20: 0.013
A21: Dioxins & Furans (WHO-TEQ Fish) | C21: 6-8hrs | D21: None set ng/m3 | F21: 0.015
A22: Dioxins & Furans (WHO-TEQ Birds) | C22: 6-8hrs | D22: None set ng/m3 | F22: 0.022
A23: Anthanthrene | C23: 6-8hrs | D23: None set µg/m3 | F23: 0.001
A24: Benzo(a)anthracene | C24: 6-8hrs | D24: None set µg/m3 | F24: 0.0003
A25: Benzo(a)pyrene | C25: 6-8hrs | D25: None set µg/m3 | F25: 0.0003
A26: Benzo(b)fluoranthene | C26: 6-8hrs | D26: None set µg/m3 | F26: 0.0037
A27: Benzo(b)naptho(2,1-d) thiophene | C27: 6-8hrs | D27: None set µg/m3 | F27: 0.0007
A28: Benzo(c)phenanthrene | C28: 6-8hrs | D28: None set µg/m3 | F28: 0.0007
A29: Benzo(ghi)perylene | C29: 6-8hrs | D29: None set µg/m3 | F29: 0.001
A30: Benzo(k)fluoranthene | C30: 6-8hrs | D30: None set µg/m3 | F30: 0.0007
A31: Cholanthrene | C31: 6-8hrs | D31: None set µg/m3 | F31: 0.001
A32: Chrysene | C32: 6-8hrs | D32: None set µg/m3 | F32: 0.0037
A33: Cyclopenta(cd)pyrene | C33: 6-8hrs | D33: None set µg/m3 | F33: 0.001
A34: Dibenzo(ai)pyrene | C34: 6-8hrs | D34: None set µg/m3 | F34: 0.001
A35: Dibenzo(ah)anthracene | C35: 6-8hrs | D35: None set µg/m3 | F35: 0.001
A36: Fluoranthene | C36: 6-8hrs | D36: None set µg/m3 | F36: 0.022
A37: Indeno(123-cd) pyrene | C37: 6-8hrs | D37: None set µg/m3 | F37: 0.0003
A38: Naphthalene | C38: 6-8hrs | D38: None set µg/m3 | F38: 0.26
A39: Comments :

Sheet Air (CEMS)
A1: =+'Cover Page'!$B$29 -> Annual Performance Report 2024 | I1: =+'Cover Page'!$B$33 -> Javelin Park Energy Recovery Facility
A3: Emissions to Air (continuously monitored)
N4: Notes:
A5: Summary of monitoring undertaken, standards used and compliance | N5: Template may require adjustment for any bespoke monitoring requirements of permit
N6: Please check that all default ELV values match those for your plant and edit if necessary!
N7: Report to 1 decimal place
A11: Results of emissions to air that are continuously monitored (maximum and average values for each line) - oxygen reference 11%
A12: Substance | B12: Reference Period | C12: Emission Limit Value | D12: A1 | F12: A2 | H12: A3 | J12: A4 | L12: A5
D13: Max. | E13: Avg. | F13: Max. | G13: Avg. | H13: Max. | I13: Avg. | J13: Max. | K13: Avg. | L13: Max. | M13: Avg.
A14: Oxides of nitrogen | B14: Daily mean | C14: 180 mg/m3 | D14: 179 | E14: 169.9
B15: ½ hourly mean | C15: 400 mg/m3 | D15: 305 | E15: 170.08
A16: Particulates | B16: Daily mean | C16: 5 mg/m3 | D16: 0 | E16: 0.13
B17: ½ hourly mean | C17: 30 mg/m3 | D17: 1 | E17: 0
A18: Total Organic Carbon | B18: Daily mean | C18: 10 mg/m3 | D18: 0 | E18: 0.08
B19: ½ hourly mean | C19: 20 mg/m3 | D19: 6 | E19: 0
A20: Hydrogen chloride | B20: Daily mean | C20: 8 mg/m3 | D20: 7 | E20: 6.14
B21: ½ hourly mean | C21: 60 mg/m3 | D21: 31 | E21: 6.25
A22: Sulphur dioxide | B22: Daily mean | C22: 40 mg/m3 | D22: 26 | E22: 13.26
B23: ½ hourly mean | C23: 200 mg/m3 | D23: 72 | E23: 13.25
A24: Carbon monoxide | B24: Daily mean | C24: 50 mg/m3 | D24: 8 | E24: 0.91
B26: 95%ile 10-min avg * | C26: 150 mg/m3 * | D26: 850 | E26: 0.92
A27: Ammonia | B27: Daily mean | C27: 15 mg/m3 | D27: 6 | E27: 0.02
A28: * = delete as appropriate, depending on whether your plant has half-hourly or 10-min CO ELVs
A29: Comments :

Sheet HCl
A1: =+'Cover Page'!$B$29 -> Annual Performance Report 2024 | E1: =+'Cover Page'!$B$33 -> Javelin Park Energy Recovery Facility
A3: Monitoring of Hydrogen Chloride emissions | D3: Whole Installation | G3: See Notes in Cell Q3 | J3: =+A3 -> Monitoring of Hydrogen Chloride emissions | N3: Per Combustion Line | Q3: Notes:
Q4: User to add logic to complete Whole installation, Table A5:G18. From the data in Per Combustion Line, Table J6:O79, subject to No. of lines installed
A5: =+'Cover Page'!C39 -> 2024 | B5: 1/2 Hourly Reference Periods | E5: Daily Reference Periods
A6: mg/Nm3 | B6: 1/2 hourly HCl ELV | C6: Monthly mean of half-hourly averages | D6: Highest half- hourly average | E6: Daily HCl ELV | F6: Monthly mean of daily averages | G6: Highest daily average | J6: =+A5 -> 2024 | K6: mg/Nm3 | L6: Monthly mean of half-hourly averages | M6: Highest half- hourly average | N6: Monthly mean of daily averages | O6: Highest daily average
A7: Jan | B7: 60 | C7: 6 | D7: 12 | E7: 8 | F7: 6.147419355 | G7: 7 | J7: A1 | K7: Jan | L7: 6 | M7: 12 | N7: 6.147419355 | O7: 7
A8: Feb | B8: 60 | C8: 6 | D8: 21 | E8: 8 | F8: 6.073333333 | G8: 7 | K8: Feb | L8: 6 | M8: 21 | N8: 6.073333333 | O8: 7
A9: Mar | B9: 60 | C9: 6 | D9: 19 | E9: 8 | F9: 5.907419355 | G9: 6 | K9: Mar | L9: 6 | M9: 19 | N9: 5.907419355 | O9: 6 | Q9: Whole Installation table A5:G18:
A10: Apr | B10: 60 | C10: 7 | D10: 13 | E10: 8 | F10: 6.610666667 | G10: 7 | K10: Apr | L10: 7 | M10: 13 | N10: 6.610666667 | O10: 7 | Q10: Mean: for 1/2 hourly and daily periods calculate mean of values across all operational combustion lines for the month
A11: May | B11: 60 | C11: 7 | D11: 12 | E11: 8 | F11: 6.608387097 | G11: 7 | K11: May | L11: 7 | M11: 12 | N11: 6.608387097 | O11: 7
A12: Jun | B12: 60 | C12: 7 | D12: 20 | E12: 8 | F12: 6.604666667 | G12: 7 | K12: Jun | L12: 7 | M12: 20 | N12: 6.604666667 | O12: 7
A13: Jul | B13: 60 | C13: 7 | D13: 13 | E13: 8 | F13: 6.510869565 | G13: 7 | K13: Jul | L13: 7 | M13: 13 | N13: 6.510869565 | O13: 7 | Q13: Maximum: for 1/2 hourly and daily periods use the highest value across all operational combustion lines for the month
A14: Aug | B14: 60 | C14: 6 | D14: 31 | E14: 8 | F14: 6.14 | G14: 7 | K14: Aug | L14: 6 | M14: 31 | N14: 6.14 | O14: 7
A15: Sep | B15: 60 | C15: 6 | D15: 22 | E15: 8 | F15: 6.308636364 | G15: 7 | K15: Sep | L15: 6 | M15: 22 | N15: 6.308636364 | O15: 7
A16: Oct | B16: 60 | C16: 5 | D16: 7 | E16: 8 | F16: 4.986666667 | G16: 6 | K16: Oct | L16: 5 | M16: 7 | N16: 4.986666667 | O16: 6
A17: Nov | B17: 60 | C17: 6 | D17: 13 | E17: 8 | F17: 5.696206897 | G17: 6 | K17: Nov | L17: 6 | M17: 13 | N17: 5.696206897 | O17: 6
A18: Dec | B18: 60 | C18: 6 | D18: 14 | E18: 8 | F18: 6.090666667 | G18: 6 | K18: Dec | L18: 6 | M18: 14 | N18: 6.090666667 | O18: 6
K19: Annual | L19: =AVERAGE(L7:L18) -> 6.25 | M19: =MAX(M7:M18) -> 31 | N19: =AVERAGE(N7:N18) -> 6.140411553 | O19: =MAX(O7:O18) -> 7
J21: =+A5 -> 2024 | K21: mg/Nm3 | L21: Monthly mean of half-hourly averages | M21: Highest half- hourly average | N21: Monthly mean of daily averages | O21: Highest daily average
J22: A2 | K22: Jan
K23: Feb
K24: Mar
K25: Apr
K26: May
K27: Jun
K28: Jul
K29: Aug
K30: Sep
K31: Oct
K32: Nov
K33: Dec
K34: Annual | L34: =AVERAGE(L22:L33) ->  | M34: =MAX(M22:M33) -> 0 | N34: =AVERAGE(N22:N33) ->  | O34: =MAX(O22:O33) -> 0
J36: =+A5 -> 2024 | K36: mg/Nm3 | L36: Monthly mean of half-hourly averages | M36: Highest half- hourly average | N36: Monthly mean of daily averages | O36: Highest daily average
J37: A3 | K37: Jan
K38: Feb
K39: Mar
K40: Apr
K41: May
K42: Jun
K43: Jul
K44: Aug
K45: Sep
K46: Oct
K47: Nov
A48: Comments : | K48: Dec
K49: Annual | L49: =AVERAGE(L37:L48) ->  | M49: =MAX(M37:M48) -> 0 | N49: =AVERAGE(N37:N48) ->  | O49: =MAX(O37:O48) -> 0
J51: =+A5 -> 2024 | K51: mg/Nm3 | L51: Monthly mean of half-hourly averages | M51: Highest half- hourly average | N51: Monthly mean of daily averages | O51: Highest daily average
J52: A4 | K52: Jan
K53: Feb
K54: Mar
K55: Apr
K56: May
K57: Jun
K58: Jul
K59: Aug
K60: Sep
K61: Oct
K62: Nov
K63: Dec
K64: Annual | L64: =AVERAGE(L52:L63) ->  | M64: =MAX(M52:M63) -> 0 | N64: =AVERAGE(N52:N63) ->  | O64: =MAX(O52:O63) -> 0
J66: =+A5 -> 2024 | K66: mg/Nm3 | L66: Monthly mean of half-hourly averages | M66: Highest half- hourly average | N66: Monthly mean of daily averages | O66: Highest daily average
J67: A5 | K67: Jan
K68: Feb
K69: Mar
K70: Apr
K71: May
K72: Jun
K73: Jul
K74: Aug
K75: Sep
K76: Oct
K77: Nov
K78: Dec
K79: Annual | L79: =AVERAGE(L67:L78) ->  | M79: =MAX(M67:M78) -> 0 | N79: =AVERAGE(N67:N78) ->  | O79: =MAX(O67:O78) -> 0

Sheet SO2
A1: =+'Cover Page'!$B$29 -> Annual Performance Report 2024 | E1: =+'Cover Page'!$B$33 -> Javelin Park Energy Recovery Facility
A3: Monitoring of Sulphur dioxide emissions | D3: Whole Installation | G3: See Notes in Cell Q3 | J3: =+A3 -> Monitoring of Sulphur dioxide emissions | N3: Per Combustion Line | Q3: Notes:
Q4: User to add logic to complete Whole installation, Table A5:G18. From the data in Per Combustion Line, Table J6:O79, subject to No. of lines installed
A5: =+'Cover Page'!C39 -> 2024 | B5: 1/2 Hourly Reference Periods | E5: Daily Reference Periods
A6: mg/Nm3 | B6: 1/2 hourly SO2 ELV | C6: Monthly mean of half-hourly averages | D6: Highest half- hourly average | E6: Daily SO2 ELV | F6: Monthly mean of daily averages | G6: Highest daily average | J6: =+A5 -> 2024 | K6: mg/Nm3 | L6: Monthly mean of half-hourly averages | M6: Highest half- hourly average | N6: Monthly mean of daily averages | O6: Highest daily average
A7: Jan | B7: 200 | C7: 18 | D7: 56 | E7: 40 | F7: 18.06290323 | G7: 25 | J7: A1 | K7: Jan | L7: 18 | M7: 56 | N7: 18.06290323 | O7: 25
A8: Feb | B8: 200 | C8: 20 | D8: 69 | E8: 40 | F8: 19.81291667 | G8: 26 | K8: Feb | L8: 20 | M8: 69 | N8: 19.81291667 | O8: 26
A9: Mar | B9: 200 | C9: 18 | D9: 72 | E9: 40 | F9: 17.53193548 | G9: 26 | K9: Mar | L9: 18 | M9: 72 | N9: 17.53193548 | O9: 26 | Q9: Whole Installation table A5:G18:
A10: Apr | B10: 200 | C10: 15 | D10: 40 | E10: 40 | F10: 15.24833333 | G10: 18 | K10: Apr | L10: 15 | M10: 40 | N10: 15.24833333 | O10: 18 | Q10: Mean: for 1/2 hourly and daily periods calculate mean of values across all operational combustion lines for the month
A11: May | B11: 200 | C11: 14 | D11: 69 | E11: 40 | F11: 14.26322581 | G11: 20 | K11: May | L11: 14 | M11: 69 | N11: 14.26322581 | O11: 20
A12: Jun | B12: 200 | C12: 11 | D12: 45 | E12: 40 | F12: 11.37933333 | G12: 21 | K12: Jun | L12: 11 | M12: 45 | N12: 11.37933333 | O12: 21
A13: Jul | B13: 200 | C13: 9 | D13: 31 | E13: 40 | F13: 9.466956522 | G13: 13 | K13: Jul | L13: 9 | M13: 31 | N13: 9.466956522 | O13: 13 | Q13: Maximum: for 1/2 hourly and daily periods use the highest value across all operational combustion lines for the month
A14: Aug | B14: 200 | C14: 8 | D14: 68 | E14: 40 | F14: 7.995714286 | G14: 11 | K14: Aug | L14: 8 | M14: 68 | N14: 7.995714286 | O14: 11
A15: Sep | B15: 200 | C15: 9 | D15: 33 | E15: 40 | F15: 9.518636364 | G15: 13 | K15: Sep | L15: 9 | M15: 33 | N15: 9.518636364 | O15: 13
A16: Oct | B16: 200 | C16: 17 | D16: 54 | E16: 40 | F16: 15.83333333 | G16: 26 | K16: Oct | L16: 17 | M16: 54 | N16: 15.83333333 | O16: 26
A17: Nov | B17: 200 | C17: 11 | D17: 72 | E17: 40 | F17: 11.06448276 | G17: 19 | K17: Nov | L17: 11 | M17: 72 | N17: 11.06448276 | O17: 19
A18: Dec | B18: 200 | C18: 9 | D18: 66 | E18: 40 | F18: 8.974666667 | G18: 14 | K18: Dec | L18: 9 | M18: 66 | N18: 8.974666667 | O18: 14
K19: Annual | L19: =AVERAGE(L7:L18) -> 13.25 | M19: =MAX(M7:M18) -> 72 | N19: =AVERAGE(N7:N18) -> 13.26270315 | O19: =MAX(O7:O18) -> 26
J21: =+A5 -> 2024 | K21: mg/Nm3 | L21: Monthly mean of half-hourly averages | M21: Highest half- hourly average | N21: Monthly mean of daily averages | O21: Highest daily average
J22: A2 | K22: Jan
K23: Feb
K24: Mar
K25: Apr
K26: May
K27: Jun
K28: Jul
K29: Aug
K30: Sep
K31: Oct
K32: Nov
K33: Dec
K34: Annual | L34: =AVERAGE(L22:L33) ->  | M34: =MAX(M22:M33) -> 0 | N34: =AVERAGE(N22:N33) ->  | O34: =MAX(O22:O33) -> 0
J36: =+A5 -> 2024 | K36: mg/Nm3 | L36: Monthly mean of half-hourly averages | M36: Highest half- hourly average | N36: Monthly mean of daily averages | O36: Highest daily average
J37: A3 | K37: Jan
K38: Feb
K39: Mar
K40: Apr
K41: May
K42: Jun
K43: Jul
K44: Aug
K45: Sep
K46: Oct
K47: Nov
A48: Comments : | K48: Dec
K49: Annual | L49: =AVERAGE(L37:L48) ->  | M49: =MAX(M37:M48) -> 0 | N49: =AVERAGE(N37:N48) ->  | O49: =MAX(O37:O48) -> 0
J51: =+A5 -> 2024 | K51: mg/Nm3 | L51: Monthly mean of half-hourly averages | M51: Highest half- hourly average | N51: Monthly mean of daily averages | O51: Highest daily average
J52: A4 | K52: Jan
K53: Feb
K54: Mar
K55: Apr
K56: May
K57: Jun
K58: Jul
K59: Aug
K60: Sep
K61: Oct
K62: Nov
K63: Dec
K64: Annual | L64: =AVERAGE(L52:L63) ->  | M64: =MAX(M52:M63) -> 0 | N64: =AVERAGE(N52:N63) ->  | O64: =MAX(O52:O63) -> 0
J66: =+A5 -> 2024 | K66: mg/Nm3 | L66: Monthly mean of half-hourly averages | M66: Highest half- hourly average | N66: Monthly mean of daily averages | O66: Highest daily average
J67: A5 | K67: Jan
K68: Feb
K69: Mar
K70: Apr
K71: May
K72: Jun
K73: Jul
K74: Aug
K75: Sep
K76: Oct
K77: Nov
K78: Dec
K79: Annual | L79: =AVERAGE(L67:L78) ->  | M79: =MAX(M67:M78) -> 0 | N79: =AVERAGE(N67:N78) ->  | O79: =MAX(O67:O78) -> 0

Sheet NOx
A1: =+'Cover Page'!$B$29 -> Annual Performance Report 2024 | E1: =+'Cover Page'!$B$33 -> Javelin Park Energy Recovery Facility
A3: Monitoring of Oxides of Nitrogen emissions | D3: Whole Installation | G3: See Notes in Cell Q3 | J3: =+A3 -> Monitoring of Oxides of Nitrogen emissions | N3: Per Combustion Line | Q3: Notes:
Q4: User to add logic to complete Whole installation, Table A5:G18. From the data in Per Combustion Line, Table J6:O79, subject to No. of lines installed
A5: =+'Cover Page'!C39 -> 2024 | B5: 1/2 Hourly Reference Periods | E5: Daily Reference Periods
A6: mg/Nm3 | B6: 1/2 hourly NOx ELV | C6: Monthly mean of half-hourly averages | D6: Highest half- hourly average | E6: Daily NOx ELV | F6: Monthly mean of daily averages | G6: Highest daily average | J6: =+A5 -> 2024 | K6: mg/Nm3 | L6: Monthly mean of half-hourly averages | M6: Highest half- hourly average | N6: Monthly mean of daily averages | O6: Highest daily average
A7: Jan | B7: 400 | C7: 165 | D7: 238 | E7: 180 | F7: 164.8077419 | G7: 175 | J7: A1 | K7: Jan | L7: 165 | M7: 238 | N7: 164.8077419 | O7: 175
A8: Feb | B8: 400 | C8: 169 | D8: 201 | E8: 180 | F8: 168.8754167 | G8: 176 | K8: Feb | L8: 169 | M8: 201 | N8: 168.8754167 | O8: 176
A9: Mar | B9: 400 | C9: 170 | D9: 231 | E9: 180 | F9: 170.4496774 | G9: 176 | K9: Mar | L9: 170 | M9: 231 | N9: 170.4496774 | O9: 176 | Q9: Whole Installation table A5:G18:
A10: Apr | B10: 400 | C10: 169 | D10: 187 | E10: 180 | F10: 169.05 | G10: 175 | K10: Apr | L10: 169 | M10: 187 | N10: 169.05 | O10: 175 | Q10: Mean: for 1/2 hourly and daily periods calculate mean of values across all operational combustion lines for the month
A11: May | B11: 400 | C11: 172 | D11: 305 | E11: 180 | F11: 171.59 | G11: 179 | K11: May | L11: 172 | M11: 305 | N11: 171.59 | O11: 179
A12: Jun | B12: 400 | C12: 171 | D12: 212 | E12: 180 | F12: 171.3296667 | G12: 175 | K12: Jun | L12: 171 | M12: 212 | N12: 171.3296667 | O12: 175
A13: Jul | B13: 400 | C13: 171 | D13: 218 | E13: 180 | F13: 170.2073913 | G13: 175 | K13: Jul | L13: 171 | M13: 218 | N13: 170.2073913 | O13: 175 | Q13: Maximum: for 1/2 hourly and daily periods use the highest value across all operational combustion lines for the month
A14: Aug | B14: 400 | C14: 171 | D14: 240 | E14: 180 | F14: 170.6714286 | G14: 175 | K14: Aug | L14: 171 | M14: 240 | N14: 170.6714286 | O14: 175
A15: Sep | B15: 400 | C15: 172 | D15: 238 | E15: 180 | F15: 171.4322727 | G15: 175 | K15: Sep | L15: 172 | M15: 238 | N15: 171.4322727 | O15: 175
A16: Oct | B16: 400 | C16: 172 | D16: 294 | E16: 180 | F16: 171.0446667 | G16: 176 | K16: Oct | L16: 172 | M16: 294 | N16: 171.0446667 | O16: 176
A17: Nov | B17: 400 | C17: 169 | D17: 204 | E17: 180 | F17: 169.2162069 | G17: 174 | K17: Nov | L17: 169 | M17: 204 | N17: 169.2162069 | O17: 174
A18: Dec | B18: 400 | C18: 170 | D18: 243 | E18: 180 | F18: 170.0926667 | G18: 176 | K18: Dec | L18: 170 | M18: 243 | N18: 170.0926667 | O18: 176
K19: Annual | L19: =AVERAGE(L7:L18) -> 170.0833333 | M19: =MAX(M7:M18) -> 305 | N19: =AVERAGE(N7:N18) -> 169.8972613 | O19: =MAX(O7:O18) -> 179
J21: =+A5 -> 2024 | K21: mg/Nm3 | L21: Monthly mean of half-hourly averages | M21: Highest half- hourly average | N21: Monthly mean of daily averages | O21: Highest daily average
J22: A2 | K22: Jan
K23: Feb
K24: Mar
K25: Apr
K26: May
K27: Jun
K28: Jul
K29: Aug
K30: Sep
K31: Oct
K32: Nov
K33: Dec
K34: Annual | L34: =AVERAGE(L22:L33) ->  | M34: =MAX(M22:M33) -> 0 | N34: =AVERAGE(N22:N33) ->  | O34: =MAX(O22:O33) -> 0
J36: =+A5 -> 2024 | K36: mg/Nm3 | L36: Monthly mean of half-hourly averages | M36: Highest half- hourly average | N36: Monthly mean of daily averages | O36: Highest daily average
J37: A3 | K37: Jan
K38: Feb
K39: Mar
K40: Apr
K41: May
K42: Jun
K43: Jul
K44: Aug
K45: Sep
K46: Oct
K47: Nov
A48: Comments : | K48: Dec
K49: Annual | L49: =AVERAGE(L37:L48) ->  | M49: =MAX(M37:M48) -> 0 | N49: =AVERAGE(N37:N48) ->  | O49: =MAX(O37:O48) -> 0
J51: =+A5 -> 2024 | K51: mg/Nm3 | L51: Monthly mean of half-hourly averages | M51: Highest half- hourly average | N51: Monthly mean of daily averages | O51: Highest daily average
J52: A4 | K52: Jan
K53: Feb
K54: Mar
K55: Apr
K56: May
K57: Jun
K58: Jul
K59: Aug
K60: Sep
K61: Oct
K62: Nov
K63: Dec
K64: Annual | L64: =AVERAGE(L52:L63) ->  | M64: =MAX(M52:M63) -> 0 | N64: =AVERAGE(N52:N63) ->  | O64: =MAX(O52:O63) -> 0
J66: =+A5 -> 2024 | K66: mg/Nm3 | L66: Monthly mean of half-hourly averages | M66: Highest half- hourly average | N66: Monthly mean of daily averages | O66: Highest daily average
J67: A5 | K67: Jan
K68: Feb
K69: Mar
K70: Apr
K71: May
K72: Jun
K73: Jul
K74: Aug
K75: Sep
K76: Oct
K77: Nov
K78: Dec
K79: Annual | L79: =AVERAGE(L67:L78) ->  | M79: =MAX(M67:M78) -> 0 | N79: =AVERAGE(N67:N78) ->  | O79: =MAX(O67:O78) -> 0

Sheet TOC
A1: =+'Cover Page'!$B$29 -> Annual Performance Report 2024 | E1: =+'Cover Page'!$B$33 -> Javelin Park Energy Recovery Facility
A3: Monitoring of Total organic carbon emissions | D3: Whole Installation | G3: See Notes in Cell Q3 | J3: =+A3 -> Monitoring of Total organic carbon emissions | N3: Per Combustion Line | Q3: Notes:
Q4: User to add logic to complete Whole installation, Table A5:G18. From the data in Per Combustion Line, Table J6:O79, subject to No. of lines installed
A5: =+'Cover Page'!C39 -> 2024 | B5: 1/2 Hourly Reference Periods | E5: Daily Reference Periods
A6: mg/Nm3 | B6: 1/2 hourly TOC ELV | C6: Monthly mean of half-hourly averages | D6: Highest half- hourly average | E6: Daily TOC ELV | F6: Monthly mean of daily averages | G6: Highest daily average | J6: =+A5 -> 2024 | K6: mg/Nm3 | L6: Monthly mean of half-hourly averages | M6: Highest half- hourly average | N6: Monthly mean of daily averages | O6: Highest daily average
A7: Jan | B7: 20 | C7: 0 | D7: 2 | E7: 10 | F7: -0.01096774194 | G7: 0 | J7: A1 | K7: Jan | L7: 0 | M7: 2 | N7: -0.01096774194 | O7: 0
A8: Feb | B8: 20 | C8: 0 | D8: 4 | E8: 10 | F8: 0.13 | G8: 0 | K8: Feb | L8: 0 | M8: 4 | N8: 0.13 | O8: 0
A9: Mar | B9: 20 | C9: 0 | D9: 3 | E9: 10 | F9: 0.1203225806 | G9: 0 | K9: Mar | L9: 0 | M9: 3 | N9: 0.1203225806 | O9: 0 | Q9: Whole Installation table A5:G18:
A10: Apr | B10: 20 | C10: 0 | D10: 3 | E10: 10 | F10: -0.02 | G10: 0 | K10: Apr | L10: 0 | M10: 3 | N10: -0.02 | O10: 0 | Q10: Mean: for 1/2 hourly and daily periods calculate mean of values across all operational combustion lines for the month
A11: May | B11: 20 | C11: 0 | D11: 2 | E11: 10 | F11: 0.08903225806 | G11: 0 | K11: May | L11: 0 | M11: 2 | N11: 0.08903225806 | O11: 0
A12: Jun | B12: 20 | C12: 0 | D12: 3 | E12: 10 | F12: 0.143 | G12: 0 | K12: Jun | L12: 0 | M12: 3 | N12: 0.143 | O12: 0
A13: Jul | B13: 20 | C13: 0 | D13: 3 | E13: 10 | F13: 0.1513043478 | G13: 0 | K13: Jul | L13: 0 | M13: 3 | N13: 0.1513043478 | O13: 0 | Q13: Maximum: for 1/2 hourly and daily periods use the highest value across all operational combustion lines for the month
A14: Aug | B14: 20 | C14: 0 | D14: 5 | E14: 10 | F14: 0.15 | G14: 0 | K14: Aug | L14: 0 | M14: 5 | N14: 0.15 | O14: 0
A15: Sep | B15: 20 | C15: 0 | D15: 6 | E15: 10 | F15: 0.1304545455 | G15: 0 | K15: Sep | L15: 0 | M15: 6 | N15: 0.1304545455 | O15: 0
A16: Oct | B16: 20 | C16: 0 | D16: 1 | E16: 10 | F16: 0.09333333333 | G16: 0 | K16: Oct | L16: 0 | M16: 1 | N16: 0.09333333333 | O16: 0
A17: Nov | B17: 20 | C17: 0 | D17: 2 | E17: 10 | F17: -0.001724137931 | G17: 0 | K17: Nov | L17: 0 | M17: 2 | N17: -0.001724137931 | O17: 0
A18: Dec | B18: 20 | C18: 0 | D18: 2 | E18: 10 | F18: -0.02833333333 | G18: 0 | K18: Dec | L18: 0 | M18: 2 | N18: -0.02833333333 | O18: 0
K19: Annual | L19: =AVERAGE(L7:L18) -> 0 | M19: =MAX(M7:M18) -> 6 | N19: =AVERAGE(N7:N18) -> 0.07886848768 | O19: =MAX(O7:O18) -> 0
J21: =+A5 -> 2024 | K21: mg/Nm3 | L21: Monthly mean of half-hourly averages | M21: Highest half- hourly average | N21: Monthly mean of daily averages | O21: Highest daily average
J22: A2 | K22: Jan
K23: Feb
K24: Mar
K25: Apr
K26: May
K27: Jun
K28: Jul
K29: Aug
K30: Sep
K31: Oct
K32: Nov
K33: Dec
K34: Annual | L34: =AVERAGE(L22:L33) ->  | M34: =MAX(M22:M33) -> 0 | N34: =AVERAGE(N22:N33) ->  | O34: =MAX(O22:O33) -> 0
J36: =+A5 -> 2024 | K36: mg/Nm3 | L36: Monthly mean of half-hourly averages | M36: Highest half- hourly average | N36: Monthly mean of daily averages | O36: Highest daily average
J37: A3 | K37: Jan
K38: Feb
K39: Mar
K40: Apr
K41: May
K42: Jun
K43: Jul
K44: Aug
K45: Sep
K46: Oct
K47: Nov
A48: Comments : | K48: Dec
K49: Annual | L49: =AVERAGE(L37:L48) ->  | M49: =MAX(M37:M48) -> 0 | N49: =AVERAGE(N37:N48) ->  | O49: =MAX(O37:O48) -> 0
J51: =+A5 -> 2024 | K51: mg/Nm3 | L51: Monthly mean of half-hourly averages | M51: Highest half- hourly average | N51: Monthly mean of daily averages | O51: Highest daily average
J52: A4 | K52: Jan
K53: Feb
K54: Mar
K55: Apr
K56: May
K57: Jun
K58: Jul
K59: Aug
K60: Sep
K61: Oct
K62: Nov
K63: Dec
K64: Annual | L64: =AVERAGE(L52:L63) ->  | M64: =MAX(M52:M63) -> 0 | N64: =AVERAGE(N52:N63) ->  | O64: =MAX(O52:O63) -> 0
J66: =+A5 -> 2024 | K66: mg/Nm3 | L66: Monthly mean of half-hourly averages | M66: Highest half- hourly average | N66: Monthly mean of daily averages | O66: Highest daily average
J67: A5 | K67: Jan
K68: Feb
K69: Mar
K70: Apr
K71: May
K72: Jun
K73: Jul
K74: Aug
K75: Sep
K76: Oct
K77: Nov
K78: Dec
K79: Annual | L79: =AVERAGE(L67:L78) ->  | M79: =MAX(M67:M78) -> 0 | N79: =AVERAGE(N67:N78) ->  | O79: =MAX(O67:O78) -> 0

Sheet Particulates
A1: =+'Cover Page'!$B$29 -> Annual Performance Report 2024 | E1: =+'Cover Page'!$B$33 -> Javelin Park Energy Recovery Facility
A3: Monitoring of Particulate matter emissions | D3: Whole Installation | G3: See Notes in Cell Q3 | J3: =+A3 -> Monitoring of Particulate matter emissions | N3: Per Combustion Line | Q3: Notes:
A5: =+'Cover Page'!C39 -> 2024 | B5: 1/2 Hourly Reference Periods | E5: Daily Reference Periods | Q5: User to add logic to complete Whole installation, Table A5:G18. From the data in Per Combustion Line, Table J6:O79, subject to No. of lines installed
A6: mg/Nm3 | B6: 1/2 hourly PM ELV | C6: Monthly mean of half-hourly averages | D6: Highest half- hourly average | E6: Daily PM ELV | F6: Monthly mean of daily averages | G6: Highest daily average | J6: =+A5 -> 2024 | K6: mg/Nm3 | L6: Monthly mean of half-hourly averages | M6: Highest half- hourly average | N6: Monthly mean of daily averages | O6: Highest daily average
A7: Jan | B7: 30 | C7: 0 | D7: 0 | E7: 5 | F7: 0.1222580645 | G7: 0 | J7: A1 | K7: Jan | L7: 0 | M7: 0 | N7: 0.1222580645 | O7: 0
A8: Feb | B8: 30 | C8: 0 | D8: 1 | E8: 5 | F8: 0.2366666667 | G8: 0 | K8: Feb | L8: 0 | M8: 1 | N8: 0.2366666667 | O8: 0
A9: Mar | B9: 30 | C9: 0 | D9: 0 | E9: 5 | F9: 0.1203225806 | G9: 0 | K9: Mar | L9: 0 | M9: 0 | N9: 0.1203225806 | O9: 0
A10: Apr | B10: 30 | C10: 0 | D10: 0 | E10: 5 | F10: 0.116 | G10: 0 | K10: Apr | L10: 0 | M10: 0 | N10: 0.116 | O10: 0 | Q10: Whole Installation table A5:G18:
A11: May | B11: 30 | C11: 0 | D11: 0 | E11: 5 | F11: 0.115483871 | G11: 0 | K11: May | L11: 0 | M11: 0 | N11: 0.115483871 | O11: 0 | Q11: Mean: for 1/2 hourly and daily periods calculate mean of values across all operational combustion lines for the month
A12: Jun | B12: 30 | C12: 0 | D12: 0 | E12: 5 | F12: 0.1143333333 | G12: 0 | K12: Jun | L12: 0 | M12: 0 | N12: 0.1143333333 | O12: 0
A13: Jul | B13: 30 | C13: 0 | D13: 0 | E13: 5 | F13: 0.1265217391 | G13: 0 | K13: Jul | L13: 0 | M13: 0 | N13: 0.1265217391 | O13: 0
A14: Aug | B14: 30 | C14: 0 | D14: 1 | E14: 5 | F14: 0.1347619048 | G14: 0 | K14: Aug | L14: 0 | M14: 1 | N14: 0.1347619048 | O14: 0 | Q14: Maximum: for 1/2 hourly and daily periods use the highest value across all operational combustion lines for the month
A15: Sep | B15: 30 | C15: 0 | D15: 0 | E15: 5 | F15: 0.1290909091 | G15: 0 | K15: Sep | L15: 0 | M15: 0 | N15: 0.1290909091 | O15: 0
A16: Oct | B16: 30 | C16: 0 | D16: 0 | E16: 5 | F16: 0.132 | G16: 0 | K16: Oct | L16: 0 | M16: 0 | N16: 0.132 | O16: 0
A17: Nov | B17: 30 | C17: 0 | D17: 0 | E17: 5 | F17: 0.1203448276 | G17: 0 | K17: Nov | L17: 0 | M17: 0 | N17: 0.1203448276 | O17: 0
A18: Dec | B18: 30 | C18: 0 | D18: 0 | E18: 5 | F18: 0.132 | G18: 0 | K18: Dec | L18: 0 | M18: 0 | N18: 0.132 | O18: 0
K19: Annual | L19: =AVERAGE(L7:L18) -> 0 | M19: =MAX(M7:M18) -> 1 | N19: =AVERAGE(N7:N18) -> 0.1333153247 | O19: =MAX(O7:O18) -> 0
J21: =+A5 -> 2024 | K21: mg/Nm3 | L21: Monthly mean of half-hourly averages | M21: Highest half- hourly average | N21: Monthly mean of daily averages | O21: Highest daily average
J22: A2 | K22: Jan
K23: Feb
K24: Mar
K25: Apr
K26: May
K27: Jun
K28: Jul
K29: Aug
K30: Sep
K31: Oct
K32: Nov
K33: Dec
K34: Annual | L34: =AVERAGE(L22:L33) ->  | M34: =MAX(M22:M33) -> 0 | N34: =AVERAGE(N22:N33) ->  | O34: =MAX(O22:O33) -> 0
J36: =+A5 -> 2024 | K36: mg/Nm3 | L36: Monthly mean of half-hourly averages | M36: Highest half- hourly average | N36: Monthly mean of daily averages | O36: Highest daily average
J37: A3 | K37: Jan
K38: Feb
K39: Mar
K40: Apr
K41: May
K42: Jun
K43: Jul
K44: Aug
K45: Sep
K46: Oct
K47: Nov
A48: Comments : | K48: Dec
K49: Annual | L49: =AVERAGE(L37:L48) ->  | M49: =MAX(M37:M48) -> 0 | N49: =AVERAGE(N37:N48) ->  | O49: =MAX(O37:O48) -> 0
J51: =+A5 -> 2024 | K51: mg/Nm3 | L51: Monthly mean of half-hourly averages | M51: Highest half- hourly average | N51: Monthly mean of daily averages | O51: Highest daily average
J52: A4 | K52: Jan
K53: Feb
K54: Mar
K55: Apr
K56: May
K57: Jun
K58: Jul
K59: Aug
K60: Sep
K61: Oct
K62: Nov
K63: Dec
K64: Annual | L64: =AVERAGE(L52:L63) ->  | M64: =MAX(M52:M63) -> 0 | N64: =AVERAGE(N52:N63) ->  | O64: =MAX(O52:O63) -> 0
J66: =+A5 -> 2024 | K66: mg/Nm3 | L66: Monthly mean of half-hourly averages | M66: Highest half- hourly average | N66: Monthly mean of daily averages | O66: Highest daily average
J67: A5 | K67: Jan
K68: Feb
K69: Mar
K70: Apr
K71: May
K72: Jun
K73: Jul
K74: Aug
K75: Sep
K76: Oct
K77: Nov
K78: Dec
K79: Annual | L79: =AVERAGE(L67:L78) ->  | M79: =MAX(M67:M78) -> 0 | N79: =AVERAGE(N67:N78) ->  | O79: =MAX(O67:O78) -> 0

Sheet CO 0.5 hourly
A1: =+'Cover Page'!$B$29 -> Annual Performance Report 2024 | E1: =+'Cover Page'!$B$33 -> Javelin Park Energy Recovery Facility
A3: Monitoring of Carbon Monoxide (half hourly) | D3: Whole Installation | G3: See Notes in Cell Q3 | J3: =+A3 -> Monitoring of Carbon Monoxide (half hourly) | N3: Per Combustion Line | Q3: Notes:
A5: Please complete this tab for your plant if you have 1/2 hourly CO ELVs; otherwise, leave it blank and complete the CO 95% 10 min tab
Q7: User to add logic to complete Whole installation, Table A5:G18. From the data in Per Combustion Line, Table J6:O79, subject to No. of lines installed
A8: =+'Cover Page'!C39 -> 2024 | B8: 1/2 Hourly Reference Periods | E8: Daily Reference Periods
A9: mg/Nm3 | B9: 1/2 hourly CO ELV | C9: Monthly mean of half-hourly averages | D9: Highest half- hourly average | E9: Daily CO ELV | F9: Monthly mean of daily averages | G9: Highest daily average | J9: =+A8 -> 2024 | K9: mg/Nm3 | L9: Monthly mean of half-hourly averages | M9: Highest half- hourly average | N9: Monthly mean of daily averages | O9: Highest daily average
A10: Jan | B10: 100 | E10: 50 | J10: A1 | K10: Jan
A11: Feb | B11: =+B10 -> 100 | E11: =+E10 -> 50 | K11: Feb
A12: Mar | B12: =+B11 -> 100 | E12: =+E11 -> 50 | K12: Mar | Q12: Whole Installation table A5:G18:
A13: Apr | B13: 100 | E13: 50 | K13: Apr | Q13: Mean: for 1/2 hourly and daily periods calculate mean of values across all operational combustion lines for the month
A14: May | B14: 100 | E14: 50 | K14: May
A15: Jun | B15: 100 | E15: 50 | K15: Jun
A16: Jul | B16: 100 | E16: 50 | K16: Jul | Q16: Maximum: for 1/2 hourly and daily periods use the highest value across all operational combustion lines for the month
A17: Aug | B17: 100 | E17: 50 | K17: Aug
A18: Sep | B18: 100 | E18: 50 | K18: Sep
A19: Oct | B19: 100 | E19: 50 | K19: Oct
A20: Nov | B20: 100 | E20: 50 | K20: Nov
A21: Dec | B21: 100 | E21: 50 | K21: Dec
K22: Annual | L22: =AVERAGE(L10:L21) ->  | M22: =MAX(M10:M21) -> 0 | N22: =AVERAGE(N10:N21) ->  | O22: =MAX(O10:O21) -> 0
J24: =+A8 -> 2024 | K24: mg/Nm3 | L24: Monthly mean of half-hourly averages | M24: Highest half- hourly average | N24: Monthly mean of daily averages | O24: Highest daily average
J25: A2 | K25: Jan
K26: Feb
K27: Mar
K28: Apr
K29: May
K30: Jun
K31: Jul
K32: Aug
K33: Sep
K34: Oct
K35: Nov
K36: Dec
K37: Annual | L37: =AVERAGE(L25:L36) ->  | M37: =MAX(M25:M36) -> 0 | N37: =AVERAGE(N25:N36) ->  | O37: =MAX(O25:O36) -> 0
J39: =+A8 -> 2024 | K39: mg/Nm3 | L39: Monthly mean of half-hourly averages | M39: Highest half- hourly average | N39: Monthly mean of daily averages | O39: Highest daily average
J40: A3 | K40: Jan
K41: Feb
K42: Mar
K43: Apr
K44: May
K45: Jun
K46: Jul
K47: Aug
K48: Sep
K49: Oct
K50: Nov
A51: Comments : | K51: Dec
K52: Annual | L52: =AVERAGE(L40:L51) ->  | M52: =MAX(M40:M51) -> 0 | N52: =AVERAGE(N40:N51) ->  | O52: =MAX(O40:O51) -> 0
J54: =+A8 -> 2024 | K54: mg/Nm3 | L54: Monthly mean of half-hourly averages | M54: Highest half- hourly average | N54: Monthly mean of daily averages | O54: Highest daily average
J55: A4 | K55: Jan
K56: Feb
K57: Mar
K58: Apr
K59: May
K60: Jun
K61: Jul
K62: Aug
K63: Sep
K64: Oct
K65: Nov
K66: Dec
K67: Annual | L67: =AVERAGE(L55:L66) ->  | M67: =MAX(M55:M66) -> 0 | N67: =AVERAGE(N55:N66) ->  | O67: =MAX(O55:O66) -> 0
J69: =+A8 -> 2024 | K69: mg/Nm3 | L69: Monthly mean of half-hourly averages | M69: Highest half- hourly average | N69: Monthly mean of daily averages | O69: Highest daily average
J70: A5 | K70: Jan
K71: Feb
K72: Mar
K73: Apr
K74: May
K75: Jun
K76: Jul
K77: Aug
K78: Sep
K79: Oct
K80: Nov
K81: Dec
K82: Annual | L82: =AVERAGE(L70:L81) ->  | M82: =MAX(M70:M81) -> 0 | N82: =AVERAGE(N70:N81) ->  | O82: =MAX(O70:O81) -> 0

Sheet CO 95% 10 min
A1: =+'Cover Page'!$B$29 -> Annual Performance Report 2024 | E1: =+'Cover Page'!$B$33 -> Javelin Park Energy Recovery Facility
A3: Monitoring of Carbon Monoxide (10-minute avg) | E3: Whole Installation | H3: See Notes in Cell S3 | J3: =+A3 -> Monitoring of Carbon Monoxide (10-minute avg) | O3: Per Combustion Line | Q3: Notes: | S3: Notes:
A5: Please complete this tab for your plant if you have 10-minute average CO ELVs; otherwise, leave it blank and complete the CO 0.5 hourly tab
S7: User to add logic to complete Whole installation, Table A5:H18. From the data in Per Combustion Line, Table K6:Q79, subject to No. of lines installed
A8: =+'Cover Page'!C39 -> 2024 | B8: 10-minute Reference Periods | F8: Daily Reference Periods
A9: mg/Nm3 | B9: 95%ile 10-min avg CO ELV | C9: Highest daily 95%ile 10-min average | D9: Monthly mean of 10-min averages | E9: Highest 10-min average | F9: Daily CO ELV | G9: Monthly mean of daily averages | H9: Highest daily average | K9: =+A8 -> 2024 | L9: mg/Nm3 | M9: Highest daily 95%ile 10-min average | N9: Monthly mean of 10-min averages | O9: Highest 10-min average | P9: Monthly mean of daily averages | Q9: Highest daily average
A10: Jan | B10: 150 | C10: 5.89 | D10: 2 | E10: 425 | F10: 50 | G10: 1.502258065 | H10: 4 | K10: A1 | L10: Jan | M10: 5.89 | N10: 2 | O10: 425 | P10: 1.502258065 | Q10: 4
A11: Feb | B11: =+B10 -> 150 | C11: 3.76 | D11: 2 | E11: 850 | F11: =+F10 -> 50 | G11: 1.487916667 | H11: 8 | L11: Feb | M11: 3.76 | N11: 2 | O11: 850 | P11: 1.487916667 | Q11: 8
A12: Mar | B12: =+B11 -> 150 | C12: 2.81 | D12: 1 | E12: 236 | F12: =+F11 -> 50 | G12: 1.122258065 | H12: 4 | L12: Mar | M12: 2.81 | N12: 1 | O12: 236 | P12: 1.122258065 | Q12: 4 | S12: Whole Installation table A5:H18:
A13: Apr | B13: 150 | C13: 4.87 | D13: 1 | E13: 282 | F13: 50 | G13: 1.466333333 | H13: 4 | L13: Apr | M13: 4.87 | N13: 1 | O13: 282 | P13: 1.466333333 | Q13: 4 | S13: Mean: for 10-min and daily periods use average of all operational combustion lines.
A14: May | B14: 150 | C14: 4.93 | D14: 1 | E14: 297 | F14: 50 | G14: 1.267419355 | H14: 4 | L14: May | M14: 4.93 | N14: 1 | O14: 297 | P14: 1.267419355 | Q14: 4
A15: Jun | B15: 150 | C15: 2.81 | D15: 1 | E15: 513 | F15: 50 | G15: 0.787 | H15: 5 | L15: Jun | M15: 2.81 | N15: 1 | O15: 513 | P15: 0.787 | Q15: 5
A16: Jul | B16: 150 | C16: 2.8 | D16: 1 | E16: 440 | F16: 50 | G16: 0.6465217391 | H16: 3 | L16: Jul | M16: 2.8 | N16: 1 | O16: 440 | P16: 0.6465217391 | Q16: 3 | S16: Maximum: for 10-min and daily periods use the highest of all operational combustion lines in any month.
A17: Aug | B17: 150 | C17: 18.63 | D17: 1 | E17: 348 | F17: 50 | G17: 1.09047619 | H17: 6 | L17: Aug | M17: 18.63 | N17: 1 | O17: 348 | P17: 1.09047619 | Q17: 6
A18: Sep | B18: 150 | C18: 7.49 | D18: 1 | E18: 369 | F18: 50 | G18: 1.119090909 | H18: 3 | L18: Sep | M18: 7.49 | N18: 1 | O18: 369 | P18: 1.119090909 | Q18: 3
A19: Oct | B19: 150 | C19: 4.22 | D19: 0 | E19: 117 | F19: 50 | G19: 0.1313333333 | H19: 1 | L19: Oct | M19: 4.22 | N19: 0 | O19: 117 | P19: 0.1313333333 | Q19: 1
A20: Nov | B20: 150 | C20: 9.36 | D20: 0 | E20: 258 | F20: 50 | G20: -0.1651724138 | H20: 4 | L20: Nov | M20: 9.36 | N20: 0 | O20: 258 | P20: -0.1651724138 | Q20: 4
A21: Dec | B21: 150 | C21: 2.45 | D21: 0 | E21: 384 | F21: 50 | G21: 0.4633333333 | H21: 3 | L21: Dec | M21: 2.45 | N21: 0 | O21: 384 | P21: 0.4633333333 | Q21: 3
L22: Annual | M22: =AVERAGE(M10:M21) -> 5.835 | O22: =MAX(O10:O21) -> 850 | P22: =AVERAGE(P10:P21) -> 0.9098973813 | Q22: =MAX(Q10:Q21) -> 8
K24: =+A8 -> 2024 | L24: mg/Nm3 | M24: Highest daily 95%ile 10-min average | N24: Monthly mean of 10-min averages | O24: Highest 10-min average | P24: Monthly mean of daily averages | Q24: Highest daily average
K25: A2 | L25: Jan
L26: Feb
L27: Mar
L28: Apr
L29: May
L30: Jun
L31: Jul
L32: Aug
L33: Sep
L34: Oct
L35: Nov
L36: Dec
L37: Annual | M37: =AVERAGE(M25:M36) ->  | O37: =MAX(O25:O36) -> 0 | P37: =AVERAGE(P25:P36) ->  | Q37: =MAX(Q25:Q36) -> 0
K39: =+A8 -> 2024 | L39: mg/Nm3 | M39: Highest daily 95%ile 10-min average | N39: Monthly mean of 10-min averages | O39: Highest 10-min average | P39: Monthly mean of daily averages | Q39: Highest daily average
K40: A3 | L40: Jan
L41: Feb
L42: Mar
L43: Apr
L44: May
L45: Jun
L46: Jul
L47: Aug
L48: Sep
L49: Oct
L50: Nov
A51: Comments : | L51: Dec
A52: Environment Agency explanatory note: The 10-minute average ELV is based on the “95th percentile”. In this case this means that 95% of the 10 minute averages in the relevant 24-hour period (i.e. 137) must be below 150 mg/Nm3, and 5% (i.e. 7) are allowed to be any value above 150 mg/Nm3. Whilst we expect operators to minimise CO emissions at all times, it is perfectly acceptable for the value of the maximum 10-minute average to be above 150 mg/Nm3, provided the 95th percentile ELV has been met for that period. | L52: Annual | M52: =AVERAGE(M40:M51) ->  | O52: =MAX(O40:O51) -> 0 | P52: =AVERAGE(P40:P51) ->  | Q52: =MAX(Q40:Q51) -> 0
K54: =+A8 -> 2024 | L54: mg/Nm3 | M54: Highest daily 95%ile 10-min average | N54: Monthly mean of 10-min averages | O54: Highest 10-min average | P54: Monthly mean of daily averages | Q54: Highest daily average
K55: A4 | L55: Jan
L56: Feb
L57: Mar
L58: Apr
L59: May
L60: Jun
L61: Jul
L62: Aug
L63: Sep
L64: Oct
L65: Nov
L66: Dec
L67: Annual | M67: =AVERAGE(M55:M66) ->  | O67: =MAX(O55:O66) -> 0 | P67: =AVERAGE(P55:P66) ->  | Q67: =MAX(Q55:Q66) -> 0
K69: =+A8 -> 2024 | L69: mg/Nm3 | M69: 95%ile 10-min avg maximum | N69: Monthly CO 10-min avg mean | O69: 10-min avg maximum | P69: Monthly daily mean | Q69: Monthly daily maximum
K70: A5 | L70: Jan
L71: Feb
L72: Mar
L73: Apr
L74: May
L75: Jun
L76: Jul
L77: Aug
L78: Sep
L79: Oct
L80: Nov
L81: Dec
L82: Annual | M82: =AVERAGE(M70:M81) ->  | O82: =MAX(O70:O81) -> 0 | P82: =AVERAGE(P70:P81) ->  | Q82: =MAX(Q70:Q81) -> 0

Sheet NH3
A1: =+'Cover Page'!$B$29 -> Annual Performance Report 2024 | E1: =+'Cover Page'!$B$33 -> Javelin Park Energy Recovery Facility
A3: Monitoring of Ammnonia emissions | D3: Whole Installation | G3: See Notes in Cell Q3 | J3: =+A3 -> Monitoring of Ammnonia emissions | N3: Per Combustion Line | Q3: Notes:
Q4: User to add logic to complete Whole installation, Table A5:G18. From the data in Per Combustion Line, Table J6:O79, subject to No. of lines installed
A5: =+'Cover Page'!C39 -> 2024 | B5: 1/2 Hourly Reference Periods | E5: Daily Reference Periods
A6: mg/Nm3 | B6: 1/2 hourly NH3 ELV | C6: Monthly mean of half-hourly averages | D6: Highest half- hourly average | E6: Daily NH3 ELV | F6: Monthly mean of daily averages | G6: Highest daily average | J6: =+A5 -> 2024 | K6: mg/Nm3 | L6: Monthly mean of half-hourly averages | M6: Highest half- hourly average | N6: Monthly mean of daily averages | O6: Highest daily average
A7: Jan | B7: None | C7: 0 | D7: 0 | E7: 15 | F7: -0.1338709677 | G7: 0 | J7: A1 | K7: Jan | L7: 0 | M7: 0 | N7: -0.1338709677 | O7: 0
A8: Feb | B8: =+B7 -> None | C8: 0 | D8: 2 | E8: 15 | F8: 0.2275 | G8: 1 | K8: Feb | L8: 0 | M8: 2 | N8: 0.2275 | O8: 1
A9: Mar | B9: =+B8 -> None | C9: 0 | D9: 1 | E9: 15 | F9: -0.02322580645 | G9: 0 | K9: Mar | L9: 0 | M9: 1 | N9: -0.02322580645 | O9: 0 | Q9: Whole Installation table A5:G18:
A10: Apr | B10: None | C10: 0 | D10: 0 | E10: 15 | F10: -0.06666666667 | G10: 0 | K10: Apr | L10: 0 | M10: 0 | N10: -0.06666666667 | O10: 0 | Q10: Mean: for 1/2 hourly and daily periods calculate mean of values across all operational combustion lines for the month
A11: May | B11: None | C11: 0 | D11: 1 | E11: 15 | F11: -0.1232258065 | G11: 0 | K11: May | L11: 0 | M11: 1 | N11: -0.1232258065 | O11: 0
A12: Jun | B12: None | C12: 0 | D12: 1 | E12: 15 | F12: -0.1576666667 | G12: 0 | K12: Jun | L12: 0 | M12: 1 | N12: -0.1576666667 | O12: 0
A13: Jul | B13: None | C13: 0 | D13: 2 | E13: 15 | F13: -0.2017391304 | G13: 0 | K13: Jul | L13: 0 | M13: 2 | N13: -0.2017391304 | O13: 0 | Q13: Maximum: for 1/2 hourly and daily periods use the highest value across all operational combustion lines for the month
A14: Aug | B14: None | C14: 0 | D14: 6 | E14: 15 | F14: -0.07761904762 | G14: 0 | K14: Aug | L14: 0 | M14: 6 | N14: -0.07761904762 | O14: 0
A15: Sep | B15: None | C15: 0 | D15: 1 | E15: 15 | F15: 0.125 | G15: 0 | K15: Sep | L15: 0 | M15: 1 | N15: 0.125 | O15: 0
A16: Oct | B16: None | C16: 1 | D16: 11 | E16: 15 | F16: 0.8893333333 | G16: 6 | K16: Oct | L16: 1 | M16: 11 | N16: 0.8893333333 | O16: 6
A17: Nov | B17: None | C17: 0 | D17: 1 | E17: 15 | F17: -0.1996551724 | G17: 0 | K17: Nov | L17: 0 | M17: 1 | N17: -0.1996551724 | O17: 0
A18: Dec | B18: None | C18: 0 | D18: 1 | E18: 15 | F18: -0.03833333333 | G18: 1 | K18: Dec | L18: 0 | M18: 1 | N18: -0.03833333333 | O18: 1
K19: Annual | L19: =AVERAGE(L7:L18) -> 0.08333333333 | M19: =MAX(M7:M18) -> 11 | N19: =AVERAGE(N7:N18) -> 0.01831922796 | O19: =MAX(O7:O18) -> 6
J21: =+A5 -> 2024 | K21: mg/Nm3 | L21: Monthly mean of half-hourly averages | M21: Highest half- hourly average | N21: Monthly mean of daily averages | O21: Highest daily average
J22: A2 | K22: Jan
K23: Feb
K24: Mar
K25: Apr
K26: May
K27: Jun
K28: Jul
K29: Aug
K30: Sep
K31: Oct
K32: Nov
K33: Dec
K34: Annual | L34: =AVERAGE(L22:L33) ->  | M34: =MAX(M22:M33) -> 0 | N34: =AVERAGE(N22:N33) ->  | O34: =MAX(O22:O33) -> 0
J36: =+A5 -> 2024 | K36: mg/Nm3 | L36: Monthly mean of half-hourly averages | M36: Highest half- hourly average | N36: Monthly mean of daily averages | O36: Highest daily average
J37: A3 | K37: Jan
K38: Feb
K39: Mar
K40: Apr
K41: May
K42: Jun
K43: Jul
K44: Aug
K45: Sep
K46: Oct
K47: Nov
A48: Comments : | K48: Dec
A49: An indicated ELV value of zero in the table above means that no ammonia limit is/was set in the permit. | K49: Annual | L49: =AVERAGE(L37:L48) ->  | M49: =MAX(M37:M48) -> 0 | N49: =AVERAGE(N37:N48) ->  | O49: =MAX(O37:O48) -> 0
J51: =+A5 -> 2024 | K51: mg/Nm3 | L51: Monthly mean of half-hourly averages | M51: Highest half- hourly average | N51: Monthly mean of daily averages | O51: Highest daily average
J52: A4 | K52: Jan
K53: Feb
K54: Mar
K55: Apr
K56: May
K57: Jun
K58: Jul
K59: Aug
K60: Sep
K61: Oct
K62: Nov
K63: Dec
K64: Annual | L64: =AVERAGE(L52:L63) ->  | M64: =MAX(M52:M63) -> 0 | N64: =AVERAGE(N52:N63) ->  | O64: =MAX(O52:O63) -> 0
J66: =+A5 -> 2024 | K66: mg/Nm3 | L66: Monthly mean of half-hourly averages | M66: Highest half- hourly average | N66: Monthly mean of daily averages | O66: Highest daily average
J67: A5 | K67: Jan
K68: Feb
K69: Mar
K70: Apr
K71: May
K72: Jun
K73: Jul
K74: Aug
K75: Sep
K76: Oct
K77: Nov
K78: Dec
K79: Annual | L79: =AVERAGE(L67:L78) ->  | M79: =MAX(M67:M78) -> 0 | N79: =AVERAGE(N67:N78) ->  | O79: =MAX(O67:O78) -> 0

Sheet Template changes log
A1: Log of changes to template (Environment Agency use only)
A3: Date | B3: Description of change | C3: New version number and date
A4: 2024-01-16 | B4: Air (periodic) tab: corrected default O2 reference from 6 to 11% | C4: Version 23.5a (for incinerators) - 16/01/2024
A5: 2024-09-23 | B5: Air (periodic) tab: corrected symbol for Thallium to Tl
A6: 2024-09-23 | B6: Air (periodic) tab: removed last year's references to different emission limit values applying from 03/12/23 and updated all relevant ELVs
A7: 2024-09-23 | B7: Tabs for continuously monitored pollutants (HCl, SO2 etc.): changed terminology in table headings to improve clarity
A8: 2024-09-23 | B8: Tabs for continuously monitored pollutants (HCl, SO2 etc.): removed last year's references to different emission limit values applying from 03/12/23 and updated all relevant ELVs
A9: 2024-09-23 | B9: Perf 1 tab: updated formula for water usage to report m3 rather than litres and corrected error with formula copying operator name
A10: 2024-09-23 | B10: Operational Summary tab: table added on start-ups and shut-downs
A11: 2024-09-23 | B11: Operational Summary tab: table added on dioxins and mercury protocols
A12: 2024-09-23 | B12: Operational Summary tab: table added on AST, QAL 2 and calibration functions
A13: 2024-09-23 | B13: CO2 N2O tab: various changes made to notes to reflect the fact that most plants should now have calibrated CEMS and flow meters + some have C14 samplers and more up to date industry data | C13: Version 24a (for incinerators) - 23/09/24
A14: 2024-11-08 | B14: CO2 N2O tab: Changed the N2O CO2 equivalence factor from 298 to 265 in line with recently updated government greenhouse gas figures: https://www.gov.uk/government/publications/greenhouse-gas-reporting-conversion-factors-2024
A15: 2024-11-08 | B15: CO2 N2O tab: Added an additional requirement for municipal EfW plants to state the yearly average biogenic percentage of the waste by mass, and reference to a document which sets out a methodology for calculating NCV of waste from the results of C14 sampling.
A16: 2024-11-08 | B16: Permit Compliance tab: Two additional columns added + explanatory notes to the table entitled "Summary of non-compliances under the permit" to allow CCS scores to be stated where relevant.
A17: 2024-11-08 | B17: Residue Quality tab: Note added explaining application of TOC and LOI limits and asking operators to report both metrics where measured. | C17: Version 24.1a (for incinerators) - 08/11/24
A18: 2024-11-27 | B18: Operational Summary tab: Tables on mercury & dioxins protocols and ASTs removed (covered instead by new tables added to updated Air 9 periodic monitoring form) | C18: Version 24.2a (for incinerators) - 27/11/24
